[Event "Late-Titled-Tuesday-Blitz-June-04-2024"]
[Site "Chess.com"]
[Date "2024.06.04"]
[Round "6"]
[White "howitzer14"]
[Black "N_I_Chess"]
[Result "1-0"]
[WhiteElo "3022"]
[BlackElo "2287"]
[TimeControl "180+1"]
[EndTime "15:05:22 PDT"]
[Termination "howitzer14 won on time"]

1. d4 {[%clk 0:02:56.4]} 1... Nf6 {[%clk 0:02:56.1]} 2. Bf4 {[%clk 0:02:55.2]}
2... d5 {[%clk 0:02:55.3]} 3. e3 {[%clk 0:02:52.5]} 3... e6 {[%clk 0:02:52.1]}
4. c4 {[%clk 0:02:51.9]} 4... Bd6 {[%clk 0:02:47.2]} 5. Bg3 {[%clk 0:02:44.8]}
5... c5 {[%clk 0:02:36.6]} 6. dxc5 {[%clk 0:02:42.6]} 6... Bxc5 {[%clk
0:02:32.6]} 7. Nc3 {[%clk 0:02:42.7]} 7... O-O {[%clk 0:02:07]} 8. Nf3 {[%clk
0:02:41.4]} 8... dxc4 {[%clk 0:02:04]} 9. Bxc4 {[%clk 0:02:38.8]} 9... Nc6
{[%clk 0:01:48.5]} 10. O-O {[%clk 0:02:36]} 10... a6 {[%clk 0:01:47.4]} 11. Rc1
{[%clk 0:02:34.4]} 11... b6 {[%clk 0:01:40.3]} 12. Qxd8 {[%clk 0:02:15.8]} 12...
Rxd8 {[%clk 0:01:38.4]} 13. Na4 {[%clk 0:02:16.7]} 13... b5 {[%clk 0:01:29.3]}
14. Nxc5 {[%clk 0:01:57.1]} 14... bxc4 {[%clk 0:01:29.3]} 15. Rxc4 {[%clk
0:01:56.8]} 15... Ne7 {[%clk 0:01:05.3]} 16. Rfc1 {[%clk 0:01:51.8]} 16... a5
{[%clk 0:00:58.3]} 17. e4 {[%clk 0:01:28]} 17... Kf8 {[%clk 0:00:42.7]} 18. Bc7
{[%clk 0:01:23.3]} 18... Re8 {[%clk 0:00:42.7]} 19. Ne5 {[%clk 0:01:22.3]} 19...
Ra7 {[%clk 0:00:37]} 20. Bb6 {[%clk 0:01:14.5]} 20... Ra8 {[%clk 0:00:33.7]} 21.
f3 {[%clk 0:01:15.1]} 21... Kg8 {[%clk 0:00:24.1]} 22. b3 {[%clk 0:01:10.4]}
22... Ng6 {[%clk 0:00:14.7]} 23. Nc6 {[%clk 0:01:05.7]} 23... Nd7 {[%clk
0:00:09.9]} 24. Bxa5 {[%clk 0:00:58.7]} 24... Nxc5 {[%clk 0:00:03.2]} 25. Rxc5
{[%clk 0:00:59.6]} 25... Bd7 {[%clk 0:00:02.5]} 26. Nd4 {[%clk 0:00:58.5]} 26...
h6 {[%clk 0:00:01.3]} 27. b4 {[%clk 0:00:58.4]} 27... Rec8 {[%clk 0:00:01.8]}
28. Kf2 {[%clk 0:00:57.6]} 28... Rxc5 {[%clk 0:00:01.8]} 29. Rxc5 {[%clk
0:00:58.5]} 29... Kf8 {[%clk 0:00:01]} 30. Ke3 {[%clk 0:00:57.8]} 30... Ke8
{[%clk 0:00:01.7]} 31. g3 {[%clk 0:00:52.4]} 31... Ne7 {[%clk 0:00:01.2]} 32. a3
{[%clk 0:00:47.8]} 32... Nc8 {[%clk 0:00:01.2]} 33. h4 {[%clk 0:00:41.8]} 33...
Nd6 {[%clk 0:00:01]} 34. Rc7 {[%clk 0:00:37.8]} 1-0

[Event "Late-Titled-Tuesday-Blitz-June-04-2024"]
[Site "Chess.com"]
[Date "2024.06.04"]
[Round "6"]
[White "szachmistrz2500"]
[Black "egnfanclub"]
[Result "1-0"]
[WhiteElo "2500"]
[BlackElo "2354"]
[TimeControl "180+1"]
[EndTime "15:05:23 PDT"]
[Termination "szachmistrz2500 won on time"]

1. e4 {[%clk 0:02:56.6]} 1... e5 {[%clk 0:02:59.5]} 2. Nf3 {[%clk 0:02:56.1]}
2... Nc6 {[%clk 0:02:59.3]} 3. Bb5 {[%clk 0:02:53.2]} 3... a6 {[%clk 0:02:59.4]}
4. Ba4 {[%clk 0:02:53.2]} 4... d6 {[%clk 0:02:58.5]} 5. O-O {[%clk 0:02:52.2]}
5... Nf6 {[%clk 0:02:55.6]} 6. Re1 {[%clk 0:02:51.7]} 6... Be7 {[%clk
0:02:55.5]} 7. c3 {[%clk 0:02:51.8]} 7... O-O {[%clk 0:02:55]} 8. h3 {[%clk
0:02:51]} 8... h6 {[%clk 0:02:51.1]} 9. d4 {[%clk 0:02:50.6]} 9... b5 {[%clk
0:02:50.2]} 10. Bb3 {[%clk 0:02:48.7]} 10... exd4 {[%clk 0:02:37.6]} 11. cxd4
{[%clk 0:02:48.4]} 11... Na5 {[%clk 0:02:37.7]} 12. Bc2 {[%clk 0:02:47.5]} 12...
c5 {[%clk 0:02:38]} 13. dxc5 {[%clk 0:02:27.4]} 13... dxc5 {[%clk 0:02:37.5]}
14. Qe2 {[%clk 0:02:27.2]} 14... Nc6 {[%clk 0:02:22.8]} 15. e5 {[%clk
0:02:23.9]} 15... Nd5 {[%clk 0:02:05.7]} 16. Qe4 {[%clk 0:02:23.1]} 16... g6
{[%clk 0:02:02.2]} 17. Bxh6 {[%clk 0:02:22.8]} 17... Bf5 {[%clk 0:01:55.5]} 18.
Qe2 {[%clk 0:02:22.6]} 18... Bxc2 {[%clk 0:01:55.7]} 19. Qxc2 {[%clk 0:02:21.6]}
19... Re8 {[%clk 0:01:50]} 20. Nc3 {[%clk 0:02:21.2]} 20... Nd4 {[%clk
0:01:41.3]} 21. Qd1 {[%clk 0:02:14.3]} 21... Nb4 {[%clk 0:01:26.4]} 22. Nxd4
{[%clk 0:02:08]} 22... cxd4 {[%clk 0:01:27.3]} 23. Ne4 {[%clk 0:02:05.8]} 23...
Rc8 {[%clk 0:01:23]} 24. a3 {[%clk 0:02:00.7]} 24... Nc2 {[%clk 0:01:20.3]} 25.
Qg4 {[%clk 0:01:58.1]} 25... Nxe1 {[%clk 0:01:10.4]} 26. Rxe1 {[%clk 0:01:57.4]}
26... Rc6 {[%clk 0:01:00.6]} 27. Rd1 {[%clk 0:01:53.3]} 27... d3 {[%clk
0:00:59.6]} 28. Qg3 {[%clk 0:01:48.2]} 28... Qd5 {[%clk 0:00:49.1]} 29. Nc3
{[%clk 0:01:48.1]} 29... Qb3 {[%clk 0:00:42.4]} 30. Rxd3 {[%clk 0:01:45.5]}
30... Qxb2 {[%clk 0:00:41.6]} 31. Nd5 {[%clk 0:01:40.6]} 31... Bd8 {[%clk
0:00:29.8]} 32. Kh2 {[%clk 0:01:32]} 32... Rce6 {[%clk 0:00:30]} 33. f4 {[%clk
0:01:29.6]} 33... Be7 {[%clk 0:00:20.4]} 34. Bg5 {[%clk 0:01:28.9]} 34... Bxg5
{[%clk 0:00:14.6]} 35. Qxg5 {[%clk 0:01:28.6]} 35... Kg7 {[%clk 0:00:11.3]} 36.
Qg3 {[%clk 0:01:12.8]} 36... Rh8 {[%clk 0:00:10.7]} 37. f5 {[%clk 0:01:02.7]}
37... Rxe5 {[%clk 0:00:09.2]} 38. f6+ {[%clk 0:01:03]} 38... Kf8 {[%clk
0:00:05.3]} 39. Nc3 {[%clk 0:01:01.1]} 39... Re8 {[%clk 0:00:04.7]} 40. Rd7
{[%clk 0:00:54.5]} 40... Qb3 {[%clk 0:00:03.7]} 41. Qd6+ {[%clk 0:00:51.9]}
41... Kg8 {[%clk 0:00:03.8]} 42. Nd5 {[%clk 0:00:52.2]} 1-0

[Event "Late-Titled-Tuesday-Blitz-June-04-2024"]
[Site "Chess.com"]
[Date "2024.06.04"]
[Round "6"]
[White "ChempionBg"]
[Black "Heliosis11"]
[Result "1-0"]
[WhiteElo "2248"]
[BlackElo "2382"]
[TimeControl "180+1"]
[EndTime "15:05:23 PDT"]
[Termination "ChempionBg won by resignation"]

1. d4 {[%clk 0:02:54.3]} 1... Nf6 {[%clk 0:02:57.9]} 2. c4 {[%clk 0:02:53.4]}
2... e6 {[%clk 0:02:56.9]} 3. Nf3 {[%clk 0:02:53.4]} 3... b6 {[%clk 0:02:55.5]}
4. g3 {[%clk 0:02:53.7]} 4... Bb7 {[%clk 0:02:56.4]} 5. Bg2 {[%clk 0:02:54.1]}
5... Be7 {[%clk 0:02:50.6]} 6. O-O {[%clk 0:02:53.5]} 6... O-O {[%clk
0:02:50.4]} 7. Nc3 {[%clk 0:02:53]} 7... d5 {[%clk 0:02:50.9]} 8. Ne5 {[%clk
0:02:52.3]} 8... Nbd7 {[%clk 0:02:47.7]} 9. Bg5 {[%clk 0:02:46.8]} 9... h6
{[%clk 0:02:45.5]} 10. Nxd7 {[%clk 0:02:43]} 10... Qxd7 {[%clk 0:02:45]} 11.
Bxf6 {[%clk 0:02:43.5]} 11... Bxf6 {[%clk 0:02:45.4]} 12. cxd5 {[%clk 0:02:44]}
12... exd5 {[%clk 0:02:45.7]} 13. Rc1 {[%clk 0:02:44.5]} 13... Rfe8 {[%clk
0:02:44.9]} 14. e3 {[%clk 0:02:43.2]} 14... c6 {[%clk 0:02:41.1]} 15. b4 {[%clk
0:02:43]} 15... a5 {[%clk 0:02:39.6]} 16. a3 {[%clk 0:02:41.4]} 16... axb4
{[%clk 0:02:39.6]} 17. axb4 {[%clk 0:02:41.7]} 17... Be7 {[%clk 0:02:40.2]} 18.
Qb3 {[%clk 0:02:41.6]} 18... Ba6 {[%clk 0:02:39.6]} 19. b5 {[%clk 0:02:38.8]}
19... cxb5 {[%clk 0:01:57.4]} 20. Nxd5 {[%clk 0:02:32.4]} 20... Rab8 {[%clk
0:01:45]} 21. Nc7 {[%clk 0:02:29.3]} 21... Bb7 {[%clk 0:01:38.4]} 22. Bxb7
{[%clk 0:02:20.3]} 22... Rxb7 {[%clk 0:01:35.1]} 23. Nxe8 {[%clk 0:02:19.3]}
23... Qxe8 {[%clk 0:01:36]} 24. d5 {[%clk 0:02:06.7]} 24... Bc5 {[%clk
0:01:34.7]} 25. Rfd1 {[%clk 0:01:58.8]} 25... b4 {[%clk 0:01:32]} 26. d6 {[%clk
0:01:57.6]} 26... Ra7 {[%clk 0:01:32.1]} 27. Qd5 {[%clk 0:01:53.7]} 27... Qd7
{[%clk 0:01:32.3]} 28. e4 {[%clk 0:01:46.7]} 28... Ra3 {[%clk 0:01:24.4]} 29. e5
{[%clk 0:01:44.6]} 29... b3 {[%clk 0:01:23.5]} 30. Rb1 {[%clk 0:01:35.2]} 30...
Ra2 {[%clk 0:01:21.1]} 31. Rxb3 {[%clk 0:01:20.6]} 31... Rxf2 {[%clk 0:01:18.9]}
32. Qxc5 {[%clk 0:00:57.8]} 32... bxc5 {[%clk 0:01:08.1]} 33. Kxf2 {[%clk
0:00:57.8]} 33... Qf5+ {[%clk 0:01:06.1]} 34. Kg1 {[%clk 0:00:49.6]} 34... Qd7
{[%clk 0:01:03.5]} 35. Rc3 {[%clk 0:00:44.5]} 35... f6 {[%clk 0:00:59.6]} 36. e6
{[%clk 0:00:33.7]} 36... Qa7 {[%clk 0:00:52.5]} 37. d7 {[%clk 0:00:29.1]} 37...
c4+ {[%clk 0:00:52.8]} 38. Kg2 {[%clk 0:00:18.2]} 38... Qb7+ {[%clk 0:00:52.7]}
39. Rf3 {[%clk 0:00:14.7]} 39... Qb2+ {[%clk 0:00:51.3]} 40. Rf2 {[%clk
0:00:13.9]} 40... Qb7+ {[%clk 0:00:51]} 41. Kg1 {[%clk 0:00:14]} 1-0

[Event "Late-Titled-Tuesday-Blitz-June-04-2024"]
[Site "Chess.com"]
[Date "2024.06.04"]
[Round "6"]
[White "KingCyber19"]
[Black "sari07"]
[Result "1-0"]
[WhiteElo "2620"]
[BlackElo "2404"]
[TimeControl "180+1"]
[EndTime "15:05:24 PDT"]
[Termination "KingCyber19 won by resignation"]

1. d4 {[%clk 0:02:57.3]} 1... Nf6 {[%clk 0:02:51.9]} 2. c4 {[%clk 0:02:57]} 2...
c5 {[%clk 0:02:51.4]} 3. d5 {[%clk 0:02:56.2]} 3... e6 {[%clk 0:02:51.9]} 4. Nc3
{[%clk 0:02:54.8]} 4... exd5 {[%clk 0:02:52.1]} 5. cxd5 {[%clk 0:02:55.7]} 5...
d6 {[%clk 0:02:52.5]} 6. e4 {[%clk 0:02:56]} 6... g6 {[%clk 0:02:53]} 7. Bb5+
{[%clk 0:02:54.5]} 7... Bd7 {[%clk 0:02:46.9]} 8. a4 {[%clk 0:02:54.8]} 8... a6
{[%clk 0:02:40.2]} 9. Bd3 {[%clk 0:02:54.5]} 9... Bg7 {[%clk 0:02:36.4]} 10. f4
{[%clk 0:02:52.9]} 10... Bg4 {[%clk 0:02:29.6]} 11. Nf3 {[%clk 0:02:49.4]} 11...
O-O {[%clk 0:02:27.9]} 12. O-O {[%clk 0:02:48.7]} 12... Nbd7 {[%clk 0:02:25.8]}
13. h3 {[%clk 0:02:41]} 13... Bxf3 {[%clk 0:02:21.8]} 14. Qxf3 {[%clk
0:02:41.9]} 14... Re8 {[%clk 0:02:14.8]} 15. Be3 {[%clk 0:02:15.2]} 15... Rc8
{[%clk 0:01:59.6]} 16. a5 {[%clk 0:02:10.6]} 16... c4 {[%clk 0:01:51.3]} 17. Bc2
{[%clk 0:02:10.7]} 17... Nc5 {[%clk 0:01:46.8]} 18. e5 {[%clk 0:02:05.7]} 18...
Nfd7 {[%clk 0:01:19.6]} 19. e6 {[%clk 0:01:51.8]} 19... fxe6 {[%clk 0:01:17]}
20. dxe6 {[%clk 0:01:52.7]} 20... Rxe6 {[%clk 0:01:00.4]} 21. f5 {[%clk
0:01:52.1]} 21... Rxe3 {[%clk 0:00:51.9]} 22. Qxe3 {[%clk 0:01:51.7]} 22... Ne5
{[%clk 0:00:47.5]} 23. Nd5 {[%clk 0:01:44.9]} 23... Ncd3 {[%clk 0:00:39]} 24. f6
{[%clk 0:01:42.2]} 24... Bf8 {[%clk 0:00:38.6]} 25. b3 {[%clk 0:01:24.2]} 25...
Nc5 {[%clk 0:00:10.2]} 26. bxc4 {[%clk 0:01:17.8]} 26... Nxc4 {[%clk 0:00:09.7]}
27. Qc3 {[%clk 0:01:02.7]} 27... Ne5 {[%clk 0:00:08.9]} 28. Rae1 {[%clk
0:01:02.1]} 28... Ne6 {[%clk 0:00:05.6]} 29. Qb2 {[%clk 0:00:58.3]} 29... Kh8
{[%clk 0:00:04.9]} 30. Bb1 {[%clk 0:00:48.6]} 30... Rc5 {[%clk 0:00:04.5]} 31.
Ba2 {[%clk 0:00:47.4]} 31... Nc7 {[%clk 0:00:03.9]} 32. f7 {[%clk 0:00:38]}
32... Nxd5 {[%clk 0:00:03.7]} 33. Rxe5 {[%clk 0:00:38]} 33... dxe5 {[%clk
0:00:03]} 34. Qxe5+ {[%clk 0:00:37.8]} 34... Bg7 {[%clk 0:00:03.9]} 35. Qe8+
{[%clk 0:00:37.6]} 35... Qxe8 {[%clk 0:00:03.2]} 36. fxe8=Q+ {[%clk 0:00:37.5]}
1-0

[Event "Late-Titled-Tuesday-Blitz-June-04-2024"]
[Site "Chess.com"]
[Date "2024.06.04"]
[Round "6"]
[White "Rutricks"]
[Black "NoSpaghettiForYou"]
[Result "1-0"]
[WhiteElo "2684"]
[BlackElo "2546"]
[TimeControl "180+1"]
[EndTime "15:05:26 PDT"]
[Termination "Rutricks won by resignation"]

1. Nc3 {[%clk 0:02:58.4]} 1... c5 {[%clk 0:02:57.1]} 2. Nf3 {[%clk 0:02:58.4]}
2... Nc6 {[%clk 0:02:56]} 3. e4 {[%clk 0:02:54.6]} 3... Nf6 {[%clk 0:02:55]} 4.
h3 {[%clk 0:02:52.3]} 4... h5 {[%clk 0:02:42.9]} 5. e5 {[%clk 0:02:50.1]} 5...
Nh7 {[%clk 0:02:38]} 6. Bb5 {[%clk 0:02:43.4]} 6... g6 {[%clk 0:02:31]} 7. Qe2
{[%clk 0:02:31.8]} 7... Bg7 {[%clk 0:02:29.7]} 8. O-O {[%clk 0:02:24.5]} 8...
Qc7 {[%clk 0:02:28.6]} 9. Re1 {[%clk 0:02:00.7]} 9... a6 {[%clk 0:02:02.2]} 10.
Nd5 {[%clk 0:01:43.5]} 10... Qd8 {[%clk 0:01:59.5]} 11. Bd3 {[%clk 0:01:43.8]}
11... b5 {[%clk 0:01:48.1]} 12. c3 {[%clk 0:01:35.2]} 12... Bb7 {[%clk
0:01:47.6]} 13. Nf4 {[%clk 0:01:07.4]} 13... O-O {[%clk 0:01:37.6]} 14. Bc2
{[%clk 0:01:05.9]} 14... c4 {[%clk 0:01:06.6]} 15. d4 {[%clk 0:01:01.8]} 15...
cxd3 {[%clk 0:01:06.6]} 16. Nxd3 {[%clk 0:01:02.5]} 16... d6 {[%clk 0:00:54.3]}
17. exd6 {[%clk 0:01:00.2]} 17... Qxd6 {[%clk 0:00:53.8]} 18. Bf4 {[%clk
0:01:00.7]} 18... Qf6 {[%clk 0:00:47.1]} 19. Be3 {[%clk 0:01:01.1]} 19... e5
{[%clk 0:00:41.3]} 20. Nc5 {[%clk 0:01:01.2]} 20... Bc8 {[%clk 0:00:41.2]} 21.
Ne4 {[%clk 0:01:01.1]} 21... Qe6 {[%clk 0:00:36.8]} 22. Bb3 {[%clk 0:01:00.4]}
22... Qd7 {[%clk 0:00:32.2]} 23. Rad1 {[%clk 0:00:58.5]} 23... Qc7 {[%clk
0:00:32.5]} 24. Bc5 {[%clk 0:00:57.7]} 24... Rd8 {[%clk 0:00:29.1]} 25. Bd6
{[%clk 0:00:57.8]} 25... Qa7 {[%clk 0:00:23]} 26. Bc5 {[%clk 0:00:52.2]} 26...
Qc7 {[%clk 0:00:20.6]} 27. Neg5 {[%clk 0:00:39]} 27... Nxg5 {[%clk 0:00:17.5]}
28. Nxg5 {[%clk 0:00:39.9]} 28... Rxd1 {[%clk 0:00:07.7]} 29. Rxd1 {[%clk
0:00:40.8]} 29... Nd8 {[%clk 0:00:07]} 30. Bd6 {[%clk 0:00:24.2]} 30... Qc6
{[%clk 0:00:07.5]} 31. Bd5 {[%clk 0:00:23.7]} 31... Qxd6 {[%clk 0:00:05.3]} 32.
Nxf7 {[%clk 0:00:23]} 32... Be6 {[%clk 0:00:03.2]} 33. Nxd6 {[%clk 0:00:22.8]}
1-0

[Event "Late-Titled-Tuesday-Blitz-June-04-2024"]
[Site "Chess.com"]
[Date "2024.06.04"]
[Round "6"]
[White "isla88"]
[Black "HeinichessPY"]
[Result "1-0"]
[WhiteElo "2456"]
[BlackElo "2271"]
[TimeControl "180+1"]
[EndTime "15:05:29 PDT"]
[Termination "isla88 won by checkmate"]

1. Nf3 {[%clk 0:03:00.9]} 1... Nf6 {[%clk 0:02:59]} 2. b3 {[%clk 0:03:00.9]}
2... g6 {[%clk 0:02:55.8]} 3. Bb2 {[%clk 0:03:01.3]} 3... Bg7 {[%clk 0:02:56.4]}
4. e3 {[%clk 0:03:01.2]} 4... d6 {[%clk 0:02:57]} 5. d4 {[%clk 0:03:01.6]} 5...
O-O {[%clk 0:02:57.6]} 6. Be2 {[%clk 0:03:01.7]} 6... Nbd7 {[%clk 0:02:55.5]} 7.
O-O {[%clk 0:03:01]} 7... c6 {[%clk 0:02:51.4]} 8. Nbd2 {[%clk 0:02:59.4]} 8...
Qc7 {[%clk 0:02:48.6]} 9. a4 {[%clk 0:02:59.4]} 9... Re8 {[%clk 0:02:47.3]} 10.
a5 {[%clk 0:02:59.2]} 10... e5 {[%clk 0:02:45.2]} 11. dxe5 {[%clk 0:03:00.1]}
11... Nxe5 {[%clk 0:02:42.5]} 12. b4 {[%clk 0:02:55]} 12... Bg4 {[%clk
0:02:34.6]} 13. c4 {[%clk 0:02:51.4]} 13... Rad8 {[%clk 0:02:32.9]} 14. h3
{[%clk 0:02:45.6]} 14... Bxf3 {[%clk 0:02:31]} 15. Nxf3 {[%clk 0:02:46.1]} 15...
Ne4 {[%clk 0:02:21.3]} 16. Qc2 {[%clk 0:02:40.5]} 16... Nxf3+ {[%clk 0:02:15.7]}
17. Bxf3 {[%clk 0:02:40.7]} 17... Bxb2 {[%clk 0:02:16.3]} 18. Qxb2 {[%clk
0:02:41.6]} 18... Ng5 {[%clk 0:02:16.6]} 19. Be2 {[%clk 0:02:37.7]} 19... d5
{[%clk 0:02:12.2]} 20. cxd5 {[%clk 0:02:26.1]} 20... Rxd5 {[%clk 0:02:09.8]} 21.
Bc4 {[%clk 0:02:25.5]} 21... Rd7 {[%clk 0:01:55.4]} 22. b5 {[%clk 0:02:23.6]}
22... Ne4 {[%clk 0:01:38.7]} 23. b6 {[%clk 0:02:15.8]} 23... axb6 {[%clk
0:01:34.5]} 24. axb6 {[%clk 0:02:16.7]} 24... Qd8 {[%clk 0:01:24.3]} 25. Qb4
{[%clk 0:01:17.9]} 25... Rd2 {[%clk 0:01:01.5]} 26. Ra7 {[%clk 0:01:11.8]} 26...
Qf6 {[%clk 0:00:42.6]} 27. Rxb7 {[%clk 0:01:08.4]} 27... Rxf2 {[%clk 0:00:42.2]}
28. Bxf7+ {[%clk 0:01:07]} 28... Kh8 {[%clk 0:00:37.2]} 29. Qc4 {[%clk
0:00:52.9]} 29... Ra8 {[%clk 0:00:19.8]} 30. Ra7 {[%clk 0:00:31.9]} 30... Rd8
{[%clk 0:00:16.5]} 31. b7 {[%clk 0:00:30.4]} 31... Rdd2 {[%clk 0:00:12.9]} 32.
b8=Q+ {[%clk 0:00:29.9]} 32... Kg7 {[%clk 0:00:12.4]} 33. Bxg6+ {[%clk
0:00:22.2]} 33... Kxg6 {[%clk 0:00:10.9]} 34. Qbg8+ {[%clk 0:00:20.6]} 34... Kh6
{[%clk 0:00:09]} 35. Rxh7# {[%clk 0:00:20.6]} 1-0

[Event "Late-Titled-Tuesday-Blitz-June-04-2024"]
[Site "Chess.com"]
[Date "2024.06.04"]
[Round "6"]
[White "stolencandy13"]
[Black "Nf3c5"]
[Result "0-1"]
[WhiteElo "2623"]
[BlackElo "2613"]
[TimeControl "180+1"]
[EndTime "15:05:31 PDT"]
[Termination "Nf3c5 won by resignation"]

1. d4 {[%clk 0:02:43.9]} 1... Nf6 {[%clk 0:02:59.3]} 2. Bf4 {[%clk 0:02:43.5]}
2... c5 {[%clk 0:02:56.4]} 3. e3 {[%clk 0:02:43.5]} 3... g6 {[%clk 0:02:46.5]}
4. Nc3 {[%clk 0:02:43.3]} 4... cxd4 {[%clk 0:02:42.6]} 5. exd4 {[%clk
0:02:43.1]} 5... d5 {[%clk 0:02:41.7]} 6. Qd2 {[%clk 0:02:42.9]} 6... a6 {[%clk
0:02:17.4]} 7. Nf3 {[%clk 0:02:36.8]} 7... Bg7 {[%clk 0:02:06]} 8. O-O-O {[%clk
0:02:35.4]} 8... Nc6 {[%clk 0:02:00.7]} 9. Ne5 {[%clk 0:02:31.9]} 9... O-O
{[%clk 0:01:59.1]} 10. h4 {[%clk 0:02:27.7]} 10... Bf5 {[%clk 0:01:49]} 11. f3
{[%clk 0:02:25.6]} 11... Nb4 {[%clk 0:01:39.1]} 12. Nd3 {[%clk 0:02:20.9]} 12...
Bxd3 {[%clk 0:01:29.9]} 13. Bxd3 {[%clk 0:02:21.8]} 13... Rc8 {[%clk 0:01:29.2]}
14. Kb1 {[%clk 0:02:17.2]} 14... Nh5 {[%clk 0:01:21.4]} 15. Be3 {[%clk
0:02:09.6]} 15... e5 {[%clk 0:01:16.8]} 16. Ne2 {[%clk 0:01:58.1]} 16... Nxd3
{[%clk 0:00:44.5]} 17. Qxd3 {[%clk 0:01:58.1]} 17... e4 {[%clk 0:00:42.6]} 18.
fxe4 {[%clk 0:01:52.5]} 18... dxe4 {[%clk 0:00:42.8]} 19. Qd2 {[%clk 0:01:45.1]}
19... f5 {[%clk 0:00:41.5]} 20. g4 {[%clk 0:01:39.9]} 20... fxg4 {[%clk
0:00:41.4]} 21. Rdg1 {[%clk 0:01:30]} 21... Qd7 {[%clk 0:00:39.2]} 22. Bh6
{[%clk 0:01:19.5]} 22... Bxh6 {[%clk 0:00:35.3]} 23. Qxh6 {[%clk 0:01:20.4]}
23... Rf2 {[%clk 0:00:35.4]} 24. Qe3 {[%clk 0:01:08.7]} 24... Qf5 {[%clk
0:00:35.9]} 25. Rc1 {[%clk 0:00:45.1]} 25... Qf3 {[%clk 0:00:33.9]} 26. Qg5
{[%clk 0:00:18.7]} 26... Rxe2 {[%clk 0:00:20.6]} 27. Rhf1 {[%clk 0:00:17]} 27...
Rf2 {[%clk 0:00:20.1]} 28. Rxf2 {[%clk 0:00:15.7]} 28... Qxf2 {[%clk 0:00:20]}
29. Qxg4 {[%clk 0:00:15.7]} 29... Qf5 {[%clk 0:00:20.6]} 30. Qe2 {[%clk
0:00:14.1]} 30... Nf4 {[%clk 0:00:19.5]} 31. Qe3 {[%clk 0:00:12.3]} 31... Nd5
{[%clk 0:00:20.1]} 32. Qb3 {[%clk 0:00:12.2]} 32... b5 {[%clk 0:00:18.3]} 33. a4
{[%clk 0:00:12.2]} 33... e3 {[%clk 0:00:17.9]} 34. axb5 {[%clk 0:00:12.2]} 34...
axb5 {[%clk 0:00:18.8]} 35. Qxb5 {[%clk 0:00:12.3]} 35... Nc3+ {[%clk 0:00:19]}
36. bxc3 {[%clk 0:00:11.5]} 36... Qxb5+ {[%clk 0:00:19.9]} 0-1

[Event "Late-Titled-Tuesday-Blitz-June-04-2024"]
[Site "Chess.com"]
[Date "2024.06.04"]
[Round "6"]
[White "Defenstrator"]
[Black "Chigorinetz"]
[Result "0-1"]
[WhiteElo "2376"]
[BlackElo "2544"]
[TimeControl "180+1"]
[EndTime "15:05:31 PDT"]
[Termination "Chigorinetz won by resignation"]

1. d4 {[%clk 0:02:58.5]} 1... d5 {[%clk 0:02:59]} 2. Nf3 {[%clk 0:02:58.7]} 2...
Nc6 {[%clk 0:02:58.4]} 3. Ne5 {[%clk 0:02:53.6]} 3... Nxe5 {[%clk 0:02:56.6]} 4.
dxe5 {[%clk 0:02:54]} 4... c6 {[%clk 0:02:48.7]} 5. e4 {[%clk 0:02:50.8]} 5...
dxe4 {[%clk 0:02:45.8]} 6. Qxd8+ {[%clk 0:02:43.1]} 6... Kxd8 {[%clk 0:02:46.1]}
7. Nc3 {[%clk 0:02:43.1]} 7... Bf5 {[%clk 0:02:45.9]} 8. Bf4 {[%clk 0:02:32.6]}
8... e6 {[%clk 0:02:40.4]} 9. O-O-O+ {[%clk 0:02:32.9]} 9... Kc7 {[%clk
0:02:39.1]} 10. h3 {[%clk 0:02:23.2]} 10... h5 {[%clk 0:02:35.5]} 11. g3 {[%clk
0:02:23.2]} 11... Bc5 {[%clk 0:02:23.6]} 12. Bg2 {[%clk 0:02:22.9]} 12... Bxf2
{[%clk 0:02:21.7]} 13. Nxe4 {[%clk 0:02:20.9]} 13... Bxe4 {[%clk 0:02:03.2]} 14.
Bxe4 {[%clk 0:02:21.1]} 14... Ne7 {[%clk 0:02:02.7]} 15. Rhf1 {[%clk 0:02:14.5]}
15... Bc5 {[%clk 0:02:02.1]} 16. Bg5 {[%clk 0:02:10.6]} 16... Rhf8 {[%clk
0:02:01.3]} 17. c3 {[%clk 0:01:59.3]} 17... a5 {[%clk 0:02:00]} 18. a3 {[%clk
0:01:54.6]} 18... Nd5 {[%clk 0:01:53.4]} 19. Rf3 {[%clk 0:01:46.8]} 19... f6
{[%clk 0:01:46.5]} 20. Bxd5 {[%clk 0:01:33.8]} 20... fxg5 {[%clk 0:01:15.9]} 21.
Rxf8 {[%clk 0:01:32.3]} 21... Rxf8 {[%clk 0:01:16.8]} 22. Bxe6 {[%clk
0:01:32.8]} 22... Re8 {[%clk 0:01:17.1]} 23. Rd7+ {[%clk 0:01:28.2]} 23... Kb6
{[%clk 0:01:17]} 24. Bf7 {[%clk 0:01:24.3]} 24... Rxe5 {[%clk 0:01:16.6]} 25.
Bxh5 {[%clk 0:01:24.8]} 25... Re1+ {[%clk 0:01:00.7]} 26. Kd2 {[%clk 0:01:15.8]}
26... Rg1 {[%clk 0:01:00.2]} 27. Rxg7 {[%clk 0:01:04.9]} 27... Rg2+ {[%clk
0:00:58.9]} 28. Be2 {[%clk 0:01:00.5]} 28... Rxg3 {[%clk 0:00:57.2]} 29. b4
{[%clk 0:00:51.3]} 29... axb4 {[%clk 0:00:53.4]} 30. axb4 {[%clk 0:00:51.6]}
30... Be3+ {[%clk 0:00:53]} 31. Kc2 {[%clk 0:00:51.9]} 31... Rxh3 {[%clk
0:00:40]} 32. c4 {[%clk 0:00:51.8]} 32... Bf4 {[%clk 0:00:29]} 33. c5+ {[%clk
0:00:48.2]} 33... Ka7 {[%clk 0:00:29.2]} 34. b5 {[%clk 0:00:46.3]} 34... cxb5
{[%clk 0:00:27.3]} 35. c6 {[%clk 0:00:42.2]} 35... b4 {[%clk 0:00:16.8]} 36. c7
{[%clk 0:00:29]} 36... Rc3+ {[%clk 0:00:15.3]} 37. Kb2 {[%clk 0:00:29.6]} 37...
Rxc7 {[%clk 0:00:15.3]} 38. Kb3 {[%clk 0:00:28.5]} 38... Rxg7 {[%clk 0:00:14.2]}
0-1